fUST/lending_fUST_20250420
["ID","MTS","AMOUNT","RATE_DAILY","PERIOD"]
[358424146,1745131497017,174.0,0.00018,3]
[358424178,1745131831732,-417.22754796,0.00018355,2]
[358424180,1745131831742,-211.85717118,0.00018455,2]
[358424182,1745131831752,-824.65013089,0.00018555,2]
[358424184,1745131831762,-300.0,0.00018676,2]
[358424186,1745131831771,-300.0,0.00018676,2]
[358424188,1745131831781,-2724.90873843,0.00018677,2]
[358424190,1745131831791,-306.24430088,0.00018677,2]
[358424192,1745131831801,-634.9977027,0.00018677,2]
[358424194,1745131831810,-500.0,0.00018677,2]
[358424196,1745131831819,-591.32101451,0.00018677,2]
[358424198,1745131831828,-500.0,0.00018677,2]
[358424201,1745131831837,-500.0,0.00018677,2]
[358424203,1745131831846,-500.0,0.00018677,2]
[358424205,1745131831855,-500.0,0.00018677,2]
[358424207,1745131831865,-500.0,0.00018677,2]
[358424210,1745131831874,-465.73561555,0.00018677,2]
[358424212,1745131831886,-34.26438445,0.00018677,2]
[358424214,1745131831896,-280.03561555,0.00018678,2]
[358424217,1745131831911,-78449.74640038,0.00018678,2]
[358424282,1745131845877,-57061.08387603,0.00018678,2]
[358424283,1745131845985,-339.6,0.00018678,2]
[358425858,1745132703845,-229.28956492,0.0001801,2]
[358425881,1745133032073,-51.61043508,0.0001801,2]
[358425883,1745133032084,-184.57450925,0.00018155,2]
[358425885,1745133032104,-569.96074662,0.00018255,2]
[358425887,1745133032121,-174.67713093,0.00018478,2]
[358425888,1745133032135,-4885.27138297,0.00018478,2]
[358425889,1745133032147,-454.59122383,0.00018577,2]
[358425890,1745133032163,-500.0,0.00018577,2]
[358425891,1745133032175,-404.36809369,0.00018577,2]
[358425892,1745133032188,-214.37101061,0.00018577,2]
[358425893,1745133032202,-300.0,0.00018577,2]
[358425894,1745133032214,-300.0,0.00018577,2]
[358425895,1745133032226,-68911.1611623,0.00018578,2]
[358425913,1745133038194,-388.84957946,0.00018578,2]
[358425914,1745133038313,-7980.81612359,0.00018578,2]
[358425915,1745133038356,-5612.6822885,0.00018578,2]
[358425916,1745133038366,-3123.9070552,0.00018578,3]
[358425917,1745133038376,-32780.45238437,0.00018578,2]
[358425918,1745133038455,-167522.69208788,0.00018578,2]
[358425919,1745133038466,-2064.8091959,0.00018578,2]
[358425924,1745133040604,-7435.41270457,0.00018578,2]
[358425925,1745133040616,-1570.60893287,0.00018578,2]
[358425933,1745133043095,-2061.52148577,0.00018578,2]
[358425942,1745133046286,-339.4,0.00018578,2]
[358425943,1745133046297,-61795.54595935,0.00018578,2]
[358425944,1745133046394,-500.0,0.00018578,2]
[358425945,1745133137312,4678.1555915,0.00017597,2]
[358425946,1745133155948,1944.0,0.00018,2]
[358425947,1745133170241,308.3446366,0.00017577,2]
[358425948,1745133278775,182.69462359,0.00016372,2]
[358425949,1745133424715,5000.0,0.00016807,2]
[358425950,1745133539291,-298.30937876,0.00018458,2]
[358425951,1745133539314,-160.0,0.00018569,2]
[358425952,1745133539336,-300.0,0.00018576,2]
[358425953,1745133539359,-300.0,0.00018576,2]
[358425954,1745133539386,-11535.83403246,0.00018577,2]
[358425955,1745133539408,-1126.4427231,0.000186,2]
[358425956,1745133539433,-370.15084971,0.000189,2]
[358425957,1745133539455,-304.62920352,0.00019,2]
[358425958,1745133539484,-573.54315733,0.00019072,2]
[358425959,1745133539512,-500.0,0.00019072,2]
[358425960,1745133539538,-500.0,0.00019072,2]
[358425961,1745133539559,-54685.09065512,0.00019073,2]
[358425989,1745134118442,669.2763864,0.0001,7]
[358426021,1745134232232,-3474.6135685,0.0001813,2]
[358426023,1745134232244,-298.30937876,0.00018739,2]
[358426025,1745134232254,-246.76723314,0.000189,2]
[358426027,1745134232263,-1015.8069488,0.00018904,2]
[358426029,1745134232273,-500.0,0.00019041,2]
[358426031,1745134232282,-300.0,0.00019072,2]
[358426033,1745134232292,-300.0,0.00019072,2]
[358426035,1745134232301,-15046.59093605,0.00019073,2]
[358426038,1745134232310,-280.3256902,0.00019078,2]
[358426039,1745134232320,-4544.14297537,0.00019078,2]
[358426041,1745134232330,-196.0,0.000191,2]
[358426042,1745134232339,-196.0,0.000191,2]
[358426043,1745134232349,-196.0,0.000191,2]
[358426044,1745134232358,-196.0,0.000191,2]
[358426045,1745134232368,-280.32569016,0.00019147,2]
[358426046,1745134232378,-500.0,0.00019173,2]
[358426047,1745134232388,-206.96333531,0.00019177,2]
[358426048,1745134232398,-192.821,0.00019177,2]
[358426049,1745134232408,-174.83812859,0.00019177,2]
[358426050,1745134232418,-500.0,0.00019178,2]
[358426051,1745134232428,-500.0,0.00019178,2]
[358426052,1745134232437,-500.0,0.00019178,2]
[358426053,1745134232447,-501.83,0.00019178,2]
[358426054,1745134232457,-500.0,0.00019178,2]
[358426055,1745134232466,-177.549684,0.00019178,3]
[358426056,1745134232475,-500.0,0.00019178,2]
[358426057,1745134232485,-558.26,0.00019178,2]
[358426058,1745134232495,-500.0,0.00019178,2]
[358426059,1745134232504,-500.0,0.00019178,2]
[358426060,1745134232514,-500.0,0.00019178,2]
[358426061,1745134232523,-500.0,0.00019178,2]
[358426062,1745134232532,-500.0,0.00019178,2]
[358426063,1745134232541,-500.0,0.00019178,2]
[358426064,1745134232551,-500.0,0.00019178,2]
[358426065,1745134232560,-500.0,0.00019178,2]
[358426066,1745134232569,-334.0726864,0.00019178,2]
[358426067,1745134232579,-708.31,0.00019178,2]
[358426068,1745134232589,-500.0,0.00019178,2]
[358426069,1745134232598,-500.0,0.00019178,2]
[358426070,1745134232608,-500.0,0.00019178,2]
[358426071,1745134232618,-500.0,0.00019178,2]
[358426072,1745134232628,-580.62,0.00019178,2]
[358426073,1745134232637,-500.0,0.00019178,2]
[358426074,1745134232647,-500.0,0.00019178,2]
[358426075,1745134232657,-500.0,0.00019178,2]
[358426076,1745134232667,-500.0,0.00019178,2]
[358426077,1745134232676,-500.0,0.00019178,2]
[358426078,1745134232685,-500.0,0.00019178,2]
[358426079,1745134232695,-529.4,0.00019178,2]
[358426080,1745134232704,-717.95,0.00019178,2]
[358426081,1745134232714,-500.0,0.00019178,2]
[358426082,1745134232723,-509.9633171,0.00019178,2]
[358426083,1745134232738,-500.0,0.00019178,2]
[358426084,1745134232748,-748.37,0.00019178,2]
[358426085,1745134232757,-599.31296096,0.00019178,2]
[358426086,1745134232766,-512.17214467,0.00019178,2]
[358426087,1745134232777,-348.39692647,0.00019178,2]
[358426088,1745134232786,-429.73578704,0.00019178,2]
[358426089,1745134232799,-76.9479871,0.00019178,2]
[358426090,1745134232813,-522.84747784,0.00019178,2]
[358426091,1745134232823,-585.83,0.00019178,2]
[358426092,1745134232833,-509.62413297,0.00019178,2]
[358426093,1745134232843,-500.0,0.00019178,2]
[358426094,1745134232853,-930.44,0.00019178,2]
[358426095,1745134232863,-505.07892582,0.00019178,2]
[358426096,1745134232872,-500.0,0.00019178,2]
[358426097,1745134232882,-509.47,0.00019178,2]
[358426098,1745134232892,-503.49670878,0.00019178,2]
[358426099,1745134232901,-500.0,0.00019178,2]
[358426100,1745134232911,-500.0,0.00019178,2]
[358426101,1745134232921,-508.55267342,0.00019178,2]
[358426102,1745134232931,-505.44853985,0.00019178,2]
[358426103,1745134232941,-503.32818773,0.00019178,2]
[358426104,1745134232950,-500.0,0.00019178,2]
[358426105,1745134232960,-500.0,0.00019178,2]
[358426106,1745134232970,-500.0,0.00019178,2]
[358426107,1745134232979,-506.12587662,0.00019178,2]
[358426108,1745134232991,-500.0,0.00019178,2]
[358426109,1745134233001,-503.46823117,0.00019178,2]
[358426110,1745134233011,-500.0,0.00019178,2]
[358426111,1745134233020,-500.0,0.00019178,2]
[358426112,1745134233030,-505.27869301,0.00019178,2]
[358426113,1745134233040,-1262.93,0.00019178,2]
[358426114,1745134233050,-500.0,0.00019178,2]
[358426115,1745134233060,-512.6,0.00019178,2]
[358426116,1745134233069,-514.17045002,0.00019178,2]
[358426117,1745134233079,-500.0,0.00019178,2]
[358426118,1745134233088,-500.0,0.00019178,2]
[358426119,1745134233098,-500.0,0.00019178,2]
[358426120,1745134233108,-500.0,0.00019178,2]
[358426121,1745134233117,-500.0,0.00019178,2]
[358426122,1745134233127,-513.7,0.00019178,2]
[358426123,1745134233137,-504.02912147,0.00019178,2]
[358426124,1745134233146,-500.0,0.00019178,2]
[358426125,1745134233156,-500.0,0.00019178,2]
[358426126,1745134233166,-958.94,0.00019178,2]
[358426127,1745134233175,-500.0,0.00019178,2]
[358426128,1745134233185,-221.72697515,0.00019178,2]
[358426129,1745134233195,-500.0,0.00019178,2]
[358426130,1745134233204,-500.0,0.00019178,2]
[358426131,1745134233215,-506.96874842,0.00019178,2]
[358426132,1745134233224,-573.81,0.00019178,2]
[358426133,1745134233234,-500.0,0.00019178,2]
[358426134,1745134233246,-500.0,0.00019178,2]
[358426135,1745134233256,-1132.87,0.00019178,2]
[358426136,1745134233266,-500.0,0.00019178,2]
[358426137,1745134233276,-500.0,0.00019178,2]
[358426138,1745134233286,-500.0,0.00019178,2]
[358426139,1745134233295,-518.04,0.00019178,2]
[358426140,1745134233305,-529.38385746,0.00019178,2]
[358426141,1745134233316,-500.0,0.00019178,2]
[358426142,1745134233326,-500.0,0.00019178,2]
[358426143,1745134233336,-500.0,0.00019178,2]
[358426144,1745134233346,-500.0,0.00019178,2]
[358426145,1745134233356,-500.0,0.00019178,2]
[358426146,1745134233367,-666.35,0.00019178,2]
[358426147,1745134233377,-500.0,0.00019178,2]
[358426148,1745134233387,-745.0,0.00019178,2]
[358426149,1745134233396,-500.0,0.00019178,2]
[358426150,1745134233406,-500.0,0.00019178,2]
[358426151,1745134233416,-500.0,0.00019178,2]
[358426152,1745134233425,-685.17,0.00019178,2]
[358426153,1745134233435,-500.0,0.00019178,2]
[358426154,1745134233445,-500.0,0.00019178,2]
[358426155,1745134233455,-500.0,0.00019178,2]
[358426156,1745134233465,-500.0,0.00019178,2]
[358426157,1745134233473,-612.88,0.00019178,2]
[358426158,1745134233482,-500.0,0.00019178,2]
[358426159,1745134233492,-500.0,0.00019178,2]
[358426160,1745134233501,-541.02,0.00019178,2]
[358426161,1745134233510,-670.4,0.00019178,2]
[358426162,1745134233519,-2207.35,0.00019178,2]
[358426163,1745134233529,-500.0,0.00019178,2]
[358426164,1745134233540,-500.0,0.00019178,2]
[358426165,1745134233550,-600.60174823,0.00019178,2]
[358426166,1745134233564,-500.0,0.00019178,2]
[358426167,1745134233576,-1061.64,0.00019178,2]
[358426168,1745134233588,-500.0,0.00019178,2]
[358426169,1745134233602,-500.0,0.00019178,2]
[358426170,1745134233613,-500.0,0.00019178,2]
[358426171,1745134233625,-1469.669027,0.00019178,2]
[358426177,1745134238401,-203.224285,0.00018102,2]
[358426178,1745134238412,-397.950973,0.00019178,2]
[358426179,1745134238423,-500.0,0.00019178,2]
[358426180,1745134238435,-500.0,0.00019178,2]
[358426181,1745134238446,-500.0,0.00019178,2]
[358426182,1745134238457,-500.0,0.00019178,2]
[358426183,1745134238468,-500.0,0.00019178,2]
[358426184,1745134238490,-500.0,0.00019178,2]
[358426185,1745134238506,-687.47,0.00019178,2]
[358426187,1745134238518,-500.0,0.00019178,2]
[358426188,1745134238533,-174.01776223,0.00019178,2]
[358426189,1745134238551,-354.3456294,0.00019178,2]
[358426190,1745134238563,-1702.59,0.00019178,2]
[358426191,1745134238577,-44.17621625,0.00019178,2]
[358426192,1745134238594,-455.82378375,0.00019178,2]
[358426193,1745134238607,-500.0,0.00019178,2]
[358426195,1745134238620,-597.05,0.00019178,2]
[358426196,1745134238632,-724.83,0.00019178,2]
[358426197,1745134238643,-1758.15,0.00019178,2]
[358426198,1745134238654,-584.48,0.00019178,2]
[358426199,1745134238664,-500.0,0.00019178,2]
[358426200,1745134238675,-2115.09019599,0.00019178,2]
[358426201,1745134238694,-411.43124799,0.00019178,2]
[358426202,1745134238778,-263.45855602,0.00019178,2]
[358426203,1745134238789,-500.0,0.00019178,2]
[358426204,1745134238799,-500.0,0.00019178,2]
[358426205,1745134238812,-617.93501993,0.00019178,2]
[358426206,1745134238824,-2288.59,0.00019178,2]
[358426207,1745134238835,-500.0,0.00019178,2]
[358426208,1745134238847,-500.0,0.00019178,2]
[358426209,1745134238860,-456.14937369,0.00019178,2]
[358426210,1745134238871,-568.77,0.00019178,2]
[358426211,1745134238881,-500.0,0.00019178,2]
[358426212,1745134238891,-500.0,0.00019178,2]
[358426213,1745134238902,-317.42512229,0.00019178,2]
[358426214,1745134238912,-3625.78707674,0.00019178,2]
[358426215,1745134238927,-2152.7829,0.00019178,2]
[358426216,1745134238949,-6601.68002326,0.00019178,2]
[358426217,1745134238960,-956.37,0.00019178,2]
[358426218,1745134238971,-500.0,0.00019178,2]
[358426219,1745134238982,-783.15,0.00019178,2]
[358426220,1745134238994,-500.0,0.00019178,2]
[358426221,1745134239006,-500.0,0.00019178,2]
[358426222,1745134239017,-910.92348954,0.00019178,2]
[358426232,1745134240597,-399.94432502,0.00019078,2]
[358426233,1745134240610,-1287.36819291,0.00019178,2]
[358426234,1745134240624,-4145.71831755,0.00019178,2]
[358426235,1745134240636,-290.99953507,0.00019178,2]
[358426236,1745134240650,-209.00046493,0.00019178,2]
[358426237,1745134240661,-500.0,0.00019178,2]
[358426238,1745134240672,-759.45,0.00019178,2]
[358426239,1745134240683,-500.0,0.00019178,2]
[358426240,1745134240695,-502.28582129,0.00019178,2]
[358426241,1745134240706,-506.78772124,0.00019178,2]
[358426242,1745134240716,-500.0,0.00019178,2]
[358426243,1745134240728,-887.63,0.00019178,2]
[358426244,1745134240740,-500.0,0.00019178,2]
[358426245,1745134240751,-500.0,0.00019178,2]
[358426246,1745134240763,-4292.99,0.00019178,2]
[358426247,1745134240775,-500.0,0.00019178,2]
[358426248,1745134240787,-500.0,0.00019178,2]
[358426249,1745134240798,-500.0,0.00019178,2]
[358426250,1745134240811,-500.0,0.00019178,2]
[358426251,1745134240823,-1000.0,0.00019178,2]
[358426252,1745134240834,-319.0,0.00019195,2]
[358426253,1745134240846,-319.0,0.00019195,2]
[358426254,1745134240857,-319.0,0.00019195,2]
[358426255,1745134240870,-319.0,0.00019195,2]
[358426256,1745134240882,-319.0,0.00019195,2]
[358426257,1745134240893,-319.0,0.00019195,2]
[358426258,1745134240903,-319.0,0.00019195,2]
[358426259,1745134240914,-319.0,0.00019195,2]
[358426260,1745134240925,-319.0,0.00019195,2]
[358426261,1745134240935,-319.0,0.00019195,2]
[358426262,1745134240947,-319.0,0.00019195,2]
[358426263,1745134240958,-319.0,0.00019195,2]
[358426264,1745134240969,-319.0,0.00019195,2]
[358426265,1745134240979,-165.05086267,0.00019195,2]
[358426266,1745134240991,-359.0,0.00019195,2]
[358426267,1745134241001,-359.0,0.00019195,2]
[358426268,1745134241012,-359.0,0.00019195,2]
[358426269,1745134241023,-359.0,0.00019195,2]
[358426270,1745134241034,-359.0,0.00019195,2]
[358426271,1745134241045,-359.0,0.00019195,2]
[358426272,1745134241055,-359.0,0.00019195,2]
[358426273,1745134241066,-503.71455614,0.00019195,2]
[358426274,1745134241076,-280.32569016,0.00019215,2]
[358426275,1745134241087,-204.0,0.0001923,2]
[358426276,1745134241097,-280.32569016,0.00019284,2]
[358426277,1745134241108,-204.0,0.000193,2]
[358426278,1745134241118,-500.0,0.00019315,2]
[358426279,1745134241129,-1500.0,0.00019315,2]
[358426280,1745134241139,-280.32569016,0.00019352,2]
[358426281,1745134241150,-888.82927,0.00019354,2]
[358426282,1745134241161,-204.0,0.0001938,2]
[358426283,1745134241172,-151.0,0.000194,2]
[358426284,1745134241182,-204.0,0.0001945,2]
[358426285,1745134241193,-500.0,0.00019452,2]
[358426286,1745134241203,-500.0,0.00019452,2]
[358426287,1745134241213,-500.0,0.00019452,2]
[358426288,1745134241224,-500.0,0.00019452,2]
[358426289,1745134241234,-558.26,0.00019452,2]
[358426290,1745134241245,-500.0,0.00019452,2]
[358426291,1745134241255,-500.0,0.00019452,2]
[358426292,1745134241266,-500.0,0.00019452,2]
[358426293,1745134241276,-500.0,0.00019452,2]
[358426294,1745134241287,-500.0,0.00019452,2]
[358426295,1745134241297,-500.0,0.00019452,2]
[358426296,1745134241307,-500.0,0.00019452,2]
[358426297,1745134241318,-500.0,0.00019452,2]
[358426298,1745134241328,-708.31,0.00019452,2]
[358426299,1745134241339,-500.0,0.00019452,2]
[358426300,1745134241349,-500.0,0.00019452,2]
[358426301,1745134241359,-500.0,0.00019452,2]
[358426302,1745134241370,-500.0,0.00019452,2]
[358426303,1745134241380,-580.62,0.00019452,2]
[358426304,1745134241390,-500.0,0.00019452,2]
[358426305,1745134241400,-500.0,0.00019452,2]
[358426306,1745134241411,-500.0,0.00019452,2]
[358426307,1745134241420,-500.0,0.00019452,2]
[358426308,1745134241431,-500.0,0.00019452,2]
[358426309,1745134241441,-500.0,0.00019452,2]
[358426310,1745134241452,-529.4,0.00019452,2]
[358426311,1745134241462,-717.95,0.00019452,2]
[358426312,1745134241472,-500.0,0.00019452,2]
[358426313,1745134241482,-500.0,0.00019452,2]
[358426314,1745134241763,-748.37,0.00019452,2]
[358426315,1745134241783,-585.83,0.00019452,2]
[358426316,1745134241796,-500.0,0.00019452,2]
[358426317,1745134241806,-930.44,0.00019452,2]
[358426318,1745134241817,-500.0,0.00019452,2]
[358426319,1745134241827,-509.47,0.00019452,2]
[358426320,1745134241837,-500.0,0.00019452,2]
[358426321,1745134241847,-500.0,0.00019452,2]
[358426322,1745134241856,-500.0,0.00019452,2]
[358426323,1745134241865,-299.18038103,0.00019452,2]
[358426356,1745134243424,-200.81961897,0.00019452,2]
[358426357,1745134243434,-500.0,0.00019452,2]
[358426358,1745134243443,-284.9374698,0.00019452,2]
[358426416,1745134246365,-549.91,0.00019178,2]
[358426419,1745134246375,-500.0,0.00019178,2]
[358426421,1745134246384,-500.0,0.00019178,2]
[358426423,1745134246394,-215.0625302,0.00019452,2]
[358426425,1745134246403,-500.0,0.00019452,2]
[358426427,1745134246412,-195.37596617,0.00019452,2]
[358426430,1745134246438,-324.65567513,0.00019452,2]
[358426435,1745134246556,-742.8983587,0.00019452,2]
[358426436,1745134246566,-500.0,0.00019452,2]
[358426437,1745134246575,-512.6,0.00019452,2]
[358426438,1745134246585,-500.0,0.00019452,2]
[358426439,1745134246595,-500.0,0.00019452,2]
[358426440,1745134246605,-500.0,0.00019452,2]
[358426441,1745134246615,-500.0,0.00019452,2]
[358426442,1745134246624,-500.0,0.00019452,2]
[358426443,1745134246633,-513.7,0.00019452,2]
[358426444,1745134246643,-500.0,0.00019452,2]
[358426445,1745134246652,-500.0,0.00019452,2]
[358426446,1745134246662,-958.94,0.00019452,2]
[358426447,1745134246671,-500.0,0.00019452,2]
[358426448,1745134246680,-500.0,0.00019452,2]
[358426449,1745134246690,-500.0,0.00019452,2]
[358426450,1745134246699,-500.0,0.00019452,2]
[358426451,1745134246708,-500.0,0.00019452,2]
[358426452,1745134246718,-500.0,0.00019452,2]
[358426453,1745134246728,-500.0,0.00019452,2]
[358426454,1745134246742,-518.04,0.00019452,2]
[358426455,1745134246751,-500.0,0.00019452,2]
[358426456,1745134246761,-500.0,0.00019452,2]
[358426457,1745134246770,-500.0,0.00019452,2]
[358426458,1745134246781,-500.0,0.00019452,2]
[358426459,1745134246790,-403.28814014,0.00019452,2]
[358426460,1745134246800,-666.35,0.00019452,2]
[358426461,1745134246810,-346.47583328,0.00019452,2]
[358426462,1745134246822,-153.52416672,0.00019452,2]
[358426463,1745134246832,-500.0,0.00019452,2]
[358426464,1745134246841,-363.77583328,0.00019452,2]
[358426465,1745134246856,-381.22416672,0.00019452,2]
[358426466,1745134246866,-118.77583328,0.00019452,2]
[358426468,1745134503873,-544.51001105,0.0001803,2]
[358426469,1745135081129,-2638.83504823,0.0001803,2]
[358426470,1745135081158,-571.18837782,0.000188,2]
[358426471,1745135081186,-232.00755435,0.000189,2]
[358426472,1745135081214,-300.0,0.00018972,2]
[358426473,1745135081243,-151.53910398,0.00018973,2]
[358426474,1745135081272,-500.0,0.00019041,2]
[358426475,1745135081303,-151.53910398,0.00019057,2]
[358426476,1745135081330,-8548.89081164,0.00019071,2]
[358426477,1745135191690,319.98529864,0.00017977,2]
[358426526,1745135432673,-300.0,0.00018072,2]
[358426527,1745135432683,-300.0,0.00018072,2]
[358426528,1745135432692,-240.419685,0.00018073,2]
[358426529,1745135432702,-8364.6691734,0.00018077,2]
[358426530,1745135432712,-154.6717029,0.000189,2]
[358426531,1745135432721,-4342.09532168,0.00018978,2]
[358426532,1745135432731,-300.0,0.00019069,2]
[358426533,1745135432741,-500.0,0.00019072,2]
[358426534,1745135432751,-500.0,0.00019072,2]
[358426535,1745135432761,-500.0,0.00019072,2]
[358426536,1745135432772,-500.0,0.00019072,2]
[358426537,1745135432782,-157.93232749,0.00019072,2]
[358426538,1745135432793,-500.0,0.00019073,2]
[358426539,1745135432803,-417.85433263,0.00019073,2]
[358426540,1745135432814,-500.0,0.00019073,2]
[358426541,1745135432824,-500.0,0.00019073,2]
[358426542,1745135432836,-58695.21478902,0.00019078,2]
[358426543,1745135432848,-379.06604838,0.00019078,2]
[358426563,1745135438601,-41451.10918836,0.00019072,2]
[358426566,1745135438611,-49869.95760736,0.00019078,2]
[358426570,1745135438637,-1729.42529816,0.00019078,2]
[358426585,1745135438770,-10766.38828084,0.00019078,2]
[358426587,1745135438782,-16211.90007697,0.00019078,2]
[358426589,1745135438792,-4142.89550577,0.00019078,3]
[358426591,1745135438802,-370000.0,0.00019078,2]
[358426593,1745135438811,-154.257,0.00019157,2]
[358426595,1745135438820,-500.0,0.00019173,2]
[358426597,1745135438830,-365.20452727,0.00019173,2]
[358426599,1745135438840,-310.25997628,0.00019173,2]
[358426602,1745135438850,-500.0,0.00019173,2]
[358426603,1745135438860,-210.72457905,0.00019173,2]
[358426605,1745135438870,-500.0,0.00019173,2]
[358426606,1745135438880,-500.0,0.00019173,2]
[358426607,1745135438889,-500.0,0.00019173,2]
[358426609,1745135438899,-500.0,0.00019173,2]
[358426610,1745135438908,-500.0,0.00019173,2]
[358426611,1745135438918,-500.0,0.00019173,2]
[358426612,1745135438927,-500.0,0.00019173,2]
[358426613,1745135438936,-500.0,0.00019173,2]
[358426614,1745135438945,-500.0,0.00019178,2]
[358426615,1745135438955,-500.0,0.00019178,2]
[358426616,1745135438965,-500.0,0.00019178,2]
[358426617,1745135438974,-532.24,0.00019178,2]
[358426618,1745135438984,-500.0,0.00019178,2]
[358426619,1745135438994,-500.0,0.00019178,2]
[358426620,1745135439003,-500.0,0.00019178,2]
[358426621,1745135439013,-500.04227551,0.00019178,2]
[358426622,1745135439023,-500.0,0.00019178,2]
[358426623,1745135439034,-500.0,0.00019178,2]
[358426624,1745135439044,-500.0,0.00019178,2]
[358426625,1745135439054,-500.0,0.00019178,2]
[358426626,1745135439063,-233.0039441,0.00019178,2]
[358426627,1745135439072,-658.12,0.00019178,2]
[358426628,1745135439082,-500.0,0.00019178,2]
[358426629,1745135439092,-512.66133037,0.00019178,2]
[358426630,1745135439101,-509.53214911,0.00019178,2]
[358426631,1745135439112,-500.0,0.00019178,2]
[358426632,1745135439122,-686.01,0.00019178,2]
[358426633,1745135439132,-500.0,0.00019178,2]
[358426634,1745135439142,-500.0,0.00019178,2]
[358426635,1745135439151,-500.0,0.00019178,2]
[358426636,1745135439160,-642.46,0.00019178,2]
[358426637,1745135439170,-500.0,0.00019178,2]
[358426638,1745135439179,-500.0,0.00019178,2]
[358426639,1745135439190,-537.01,0.00019178,2]
[358426640,1745135439199,-852.9,0.00019178,2]
[358426641,1745135439209,-500.0,0.00019178,2]
[358426642,1745135439218,-500.0,0.00019178,2]
[358426643,1745135439228,-151.15698361,0.00019178,2]
[358426644,1745135439238,-152.60077844,0.00019178,2]
[358426645,1745135439248,-151.0,0.00019178,2]
[358426646,1745135439257,-199.1680853,0.00019178,2]
[358426647,1745135439267,-151.31170096,0.00019178,2]
[358426648,1745135439276,-500.0,0.00019178,2]
[358426649,1745135439286,-500.0,0.00019178,2]
[358426650,1745135439296,-500.0,0.00019178,2]
[358426651,1745135439306,-500.0,0.00019178,2]
[358426652,1745135439315,-500.0,0.00019178,2]
[358426653,1745135439325,-1157.68,0.00019178,2]
[358426654,1745135439335,-500.0,0.00019178,2]
[358426655,1745135439344,-750.52,0.00019178,2]
[358426656,1745135439354,-500.0,0.00019178,2]
[358426657,1745135439364,-500.0,0.00019178,2]
[358426658,1745135439374,-500.0,0.00019178,2]
[358426659,1745135439383,-500.0,0.00019178,2]
[358426660,1745135439393,-500.0,0.00019178,2]
[358426661,1745135439403,-500.0,0.00019178,2]
[358426662,1745135439413,-500.0,0.00019178,2]
[358426663,1745135439422,-500.0,0.00019178,2]
[358426664,1745135439432,-522.11463725,0.00019178,2]
[358426665,1745135439442,-500.0,0.00019178,2]
[358426666,1745135439452,-500.0,0.00019178,2]
[358426667,1745135439466,-500.0,0.00019178,2]
[358426668,1745135439476,-500.0,0.00019178,2]
[358426669,1745135439486,-500.0,0.00019178,2]
[358426670,1745135439495,-500.0,0.00019178,2]
[358426671,1745135439504,-500.0,0.00019178,2]
[358426672,1745135439514,-307.01133728,0.00019178,2]
[358426673,1745135439524,-516.92861511,0.00019178,2]
[358426674,1745135439535,-500.0,0.00019178,2]
[358426675,1745135439546,-507.44075052,0.00019178,2]
[358426676,1745135439555,-510.28632962,0.00019178,2]
[358426677,1745135439566,-242.52374537,0.00019178,2]
[358426678,1745135439575,-506.74475939,0.00019178,2]
[358426679,1745135439585,-500.0,0.00019178,2]